Cogmind - Beta 14 *** ADVENTURER MODE // 2024.12.11 @ 20:31:52 Player: Mbreton Result: Self-destructed Performance ------------- Evolutions (4) 2000 Regions Visited (10) 2000 Robots Destroyed (61) 305 Value Destroyed (2257) 2257 Prototype IDs (3) 60 Alien Tech Used (0) 0 Bonus (1257) 1257 TOTAL SCORE: 7879 Bonus ------- High Alert Combat Kills 22 Follower Combat Kills 35 Entered Garrisons 200 Used RIF Installer 500 Entered DSFs 500 Cogmind --------- Core Integrity 842/850 Matter 45/300 Energy 160/160 System Corruption 1% Temperature Cool (0) Movement Walking (185) Ox1 Location -6/Factory Parts ------- > --- POWER (1) -------- Light Nuclear Core > --- PROPULSION (5) --- Aluminum Leg Aluminum Leg VSS Leg VSS Leg > --- UTILITY (7) ------ High-capacity Storage Unit Visual Processing Unit Core Analyzer Core Analyzer Hardened Medium Armor Plating Improved Shield Generator Relay Coupler [Grunt] (11) > --- WEAPON (2) ------- Pulse Rifle Enhanced Gauss Cannon (fused) > --- INVENTORY (20) --- Light Nuclear Core Small Storage Unit Core Analyzer Improved Weapon Cycler Reaction Control System Core Shielding Hacking Suite Relay Coupler [NC] (28) Relay Coupler [Grunt] (38) Relay Coupler [Sentry] (21) Relay Coupler [Demolisher] (26) System Restoration Module System Restoration Module System Restoration Module Plasma Cannon Improved Grenade Launcher Remote Datajack Remote Datajack Katana Peak State ------------ > --- POWER ------------ Light Nuclear Core > --- PROPULSION ------- Aluminum Leg Aluminum Leg VSS Leg VSS Leg > --- UTILITY ---------- High-capacity Storage Unit Visual Processing Unit Core Analyzer Core Analyzer Hardened Medium Armor Plating Improved Shield Generator Relay Coupler [Grunt] > --- WEAPON ----------- Pulse Rifle Enhanced Gauss Cannon > --- INVENTORY -------- Light Nuclear Core Small Storage Unit Core Analyzer Improved Weapon Cycler Reaction Control System Core Shielding Hacking Suite Relay Coupler [NC] Relay Coupler [Grunt] Relay Coupler [Sentry] Relay Coupler [Demolisher] System Restoration Module System Restoration Module System Restoration Module Plasma Cannon Improved Grenade Launcher Remote Datajack Remote Datajack Katana [Rating: 47] Favorites ----------- Power Light Nuclear Core Engine Ion Engine Power Core Light Nuclear Core Propulsion Compact Wheel Treads Light Treads Leg Aluminum Leg Wheel Compact Wheel Utility Visual Processing Unit Device Reaction Control System Storage Small Storage Unit Processor Visual Processing Unit Hackware Relay Coupler [Grunt] Protection Medium Armor Plating Weapon Light Assault Rifle Energy Gun EM Pulse Gun Energy Cannon Disruptor Cannon Ballistic Gun Light Assault Rifle Ballistic Cannon Enhanced Gauss Cannon Special Weapon Remote Datajack Impact Weapon Hammer Slashing Weapon Blade Saw Build | -11 -10 -10 -9 -9 -8 -8 -8 -7 -7 -6 ------- Run | Yrd Mat Min Mat Min Mat Gar Mat Fac DSF Fac Slots Evolved 8 | . . . 2 . 2 . . 2 . 2 Power . | . . . . . . . . . . . Propulsion 3 | . . . . . 1 . . 1 . 1 Utility 5 | . . . 2 . 1 . . 1 . 1 Weapon . | . . . . . . . . . . . Parts Attached 91 | 5 4 . 17 11 9 24 11 1 7 2 Power 8 | . 1 . 2 1 . 3 1 . . . Engine 3 | . 1 . 1 1 . . . . . . Core 5 | . . . 1 . . 3 1 . . . Reactor . | . . . . . . . . . . . Propulsion 24 | 2 . . 3 3 3 6 3 1 2 1 Treads 1 | . . . . . . 1 . . . . Leg 11 | . . . . . . 4 3 1 2 1 Wheel 12 | 2 . . 3 3 3 1 . . . . Hover . | . . . . . . . . . . . Flight . | . . . . . . . . . . . Utility 29 | 1 1 . 7 4 2 6 4 . 3 1 Device 9 | . 1 . 2 1 . 3 1 . . 1 Storage 2 | 1 . . . . . . 1 . . . Processor 5 | . . . 2 1 . . . . 2 . Hackware 2 | . . . . . . . 2 . . . Protection 11 | . . . 3 2 2 3 . . 1 . Artifact . | . . . . . . . . . . . Weapon 30 | 2 2 . 5 3 4 9 3 . 2 . Energy Gun 8 | 2 1 . 1 . 3 . . . 1 . Energy Cannon 6 | . . . . 1 . 3 1 . 1 . Ballistic Gun 8 | . 1 . 4 2 1 . . . . . Ballistic Cannon 2 | . . . . . . 2 . . . . Launcher . | . . . . . . . . . . . Special Weapon 2 | . . . . . . . 2 . . . Impact Weapon 2 | . . . . . . 2 . . . . Slashing Weapon 2 | . . . . . . 2 . . . . Piercing Weapon . | . . . . . . . . . . . Special Melee Weapon . | . . . . . . . . . . . Unidentified Prototypes 1 | . . . . . 1 . . . . . Parts Lost 28 | . 1 . 4 3 5 10 3 . 2 . Power 4 | . . . 2 1 . 1 . . . . Propulsion 9 | . . . 1 . 1 4 2 . 1 . Utility 8 | . . . . 1 3 3 1 . . . Weapon 7 | . 1 . 1 1 1 2 . . 1 . Highest Loss Streak 6 | . 1 . 1 3 4 6 3 . 1 . To Critical Strikes . | . . . . . . . . . . . Average Slot Usage (%) 94 | . 88 100 97 98 92 88 98 76 93 91 Engine 6 | . 14 14 9 10 9 . . . . . Core 3 | . . . . . . 7 9 7 7 6 Leg 9 | . . . . . . 12 26 23 26 26 Wheel 14 | . 28 28 21 22 26 6 . . . . Device 7 | . 3 14 4 . . 11 14 7 2 4 Storage 10 | . 14 14 11 11 9 9 9 7 7 6 Processor 13 | . . . 21 22 18 13 9 7 21 20 Hackware 2 | . . . . . . . 11 7 7 6 Protection 5 | . . . 5 10 11 7 1 . 4 6 Energy Gun 4 | . 14 14 1 . 7 3 . . 4 6 Energy Cannon 2 | . . . . . 2 5 8 . . . Ballistic Gun 9 | . 14 14 20 21 7 . . . . . Ballistic Cannon 3 | . . . . . . 4 9 7 7 6 Peak Build Rating 47 | 5 7 7 13 16 21 34 43 32 44 47 Average Rating 21 | 3 6 7 11 13 19 25 38 32 40 46 On Entrance 18 | . 5 7 7 12 16 18 34 31 32 42 Naked Turns . | . . . . . . . . . . . Heaviest Build 69 | 9 15 15 19 26 33 31 66 58 65 69 Greatest Support 48 | 32 32 32 32 32 48 48 33 30 44 44 Greatest Overweight (x) 4 | . . . 1 . 1 4 2 1 2 1 Average Overweight (x) . | . . . . . . . 1 1 1 1 Largest Inventory Capacity 20 | 8 8 8 8 8 8 8 20 20 20 20 Average Capacity 10 | 7 8 8 8 8 8 8 19 20 20 20 Most Carried 20 | 4 7 8 8 8 8 8 20 18 20 20 Average Carried 8 | 1 4 5 7 7 6 6 14 18 18 19 Final Capacity 20 | 8 8 8 8 8 8 8 20 20 20 20 Final Carried 20 | 3 5 8 8 8 5 8 19 18 20 19 Class Distribution -------------------- 58% | Mutant 19% | Scavenger-Mutant 15% | Bothacker-Mutant 6% | Hacker-Mutant Dominant Class ---------------- Mutant | -10/Materials Mutant | -10/Mines Mutant | -9/Materials Mutant | -9/Mines Mutant | -8/Materials Scavenger-Mutant | -8/Garrison Bothacker-Mutant | -8/Materials Bothacker-Mutant | -7/Factory Bothacker-Mutant | -7/DSF Bothacker-Mutant | -6/Factory Resources | -11 -10 -10 -9 -9 -8 -8 -8 -7 -7 -6 ----------- Run | Yrd Mat Min Mat Min Mat Gar Mat Fac DSF Fac Matter Collected 1799 | 118 106 192 338 243 153 458 143 . 48 . Remotely . | . . . . . . . . . . . Salvage Created 2242 | . 46 35 638 345 346 477 273 . 70 12 Parts 131 | . 7 1 42 31 14 16 15 . 5 . Haulers Intercepted . | . . . . . . . . . . . Recyclers Shooed . | . . . . . . . . . . . Parts Field Recycled . | . . . . . . . . . . . Retrieved Matter . | . . . . . . . . . . . Parts Self-Destructed . | . . . . . . . . . . . Prevented . | . . . . . . . . . . . Kills | -11 -10 -10 -9 -9 -8 -8 -8 -7 -7 -6 ------- Run | Yrd Mat Min Mat Min Mat Gar Mat Fac DSF Fac Combat Hostiles Destroyed 70 | . 3 1 14 15 6 21 7 . 2 1 Melee 3 | . . . . . . 3 . . . . Guns 41 | . 3 1 14 15 5 3 . . . . Cannons 25 | . . . . . . 15 7 . 2 1 AOE 1 | . . . . . 1 . . . . . Classes Destroyed 11 | . 1 1 3 . . 4 . . 1 1 Operator 2 | . . . 1 . . . 1 . . . Watcher 1 | . . . 1 . . . . . . . Swarmer 16 | . 3 . 3 10 . . . . . . Cutter 2 | . . . . . . 2 . . . . Grunt 24 | . . 1 6 3 5 4 5 . . . Brawler 2 | . . . . . . 1 1 . . . Duelist 2 | . . . . . . 2 . . . . Sentry 9 | . . . 5 2 1 . 1 . . . Specialist 2 | . . . . . . . . . 2 . Programmer 1 | . . . . . . . . . . 1 Assembled 12 | . . . . . . 12 . . . . Best Kill Streak 6 | . 3 1 5 4 3 6 4 . 2 1 Combat Bots Only 6 | . 3 1 5 4 3 6 4 . 2 1 Max Kills in Single Turn 2 | . 1 1 1 2 1 1 1 . 1 1 Gunslinging 1 | . . . . 1 . . . . . . Exploded 1 | . . . . . 1 . . . . . Melee 1 | . . . . . . 1 . . . . Uniques/NPCs Destroyed . | . . . . . . . . . . . Combat | -11 -10 -10 -9 -9 -8 -8 -8 -7 -7 -6 -------- Run | Yrd Mat Min Mat Min Mat Gar Mat Fac DSF Fac Hostile Shots Fired 421 | . 13 10 82 100 43 79 49 . 37 8 Missed 116 | . 2 3 23 21 11 25 18 . 11 2 Damage Taken 3607 | . 136 88 538 672 550 845 391 . 337 50 Core 794 | . 27 12 127 116 117 246 85 . 56 8 Absorbed by Shields 18 | . . . . . . . . . . 18 Redirected to Shielding 16 | . . . . . . 16 . . . . Ignored by Resistances 1059 | . 42 26 163 208 154 237 111 . 99 19 Regen/Repaired (Parts) 33 | . . . 33 . . . . . . . Core Remaining (%) 66 | 100 . 84 . 39 . . 18 . 92 . Volleys Fired 186 | . 4 6 42 33 14 51 25 . 6 5 Largest 2 | . 2 2 2 2 2 2 2 . 2 2 Hottest 138 | . 60 60 63 46 100 138 138 . 138 120 Shots Fired 296 | . 8 12 81 62 28 58 29 . 8 10 Gun 208 | . 8 12 81 62 28 12 . . . 5 Cannon 84 | . . . . . . 46 25 . 8 5 Launcher . | . . . . . . . . . . . Special 4 | . . . . . . . 4 . . . Kinetic 227 | . 4 6 77 62 12 35 20 . 6 5 Thermal 11 | . . . . . . 6 . . . 5 Explosive . | . . . . . . . . . . . Electromagnetic 54 | . 4 6 4 . 16 17 5 . 2 . Robot Hit Streak 31 | . 2 4 29 31 14 17 9 . 3 7 Robot Miss Streak 3 | . 1 2 2 2 1 3 1 . 1 2 Penetration Max 1 | . . . . . . 1 . . . . Secondary Targets 11 | . 2 . . 7 2 . . . . . Max Gunslinging Chain 1 | . 1 . . 1 1 . . . . . Shots Hit Robots 245 | . 5 7 68 51 27 50 23 . 6 8 Core Hits 113 | . 3 3 25 21 21 28 8 . 3 1 Critical Kills . | . . . . . . . . . . . Critical Parts Destroyed 1 | . . . 1 . . . . . . . Critical Strikes 9 | . . . 2 . . 5 2 . . . Destroy 1 | . . . 1 . . . . . . . Blast 5 | . . . . . . 3 2 . . . Corrupt 1 | . . . 1 . . . . . . . Sever 2 | . . . . . . 2 . . . . Melee Attacks 17 | . . . . . . 17 . . . . Impact 2 | . . . . . . 2 . . . . Slashing 15 | . . . . . . 15 . . . . Piercing . | . . . . . . . . . . . Sneak Attacks . | . . . . . . . . . . . Combat Hostiles . | . . . . . . . . . . . Follow-up Attacks . | . . . . . . . . . . . Damage Inflicted 4607 | . 48 65 851 704 635 1276 601 . 178 249 Guns 2473 | . 48 65 851 704 544 178 . . . 83 Cannons 1819 | . . . . . . 874 601 . 178 166 Explosions 151 | . . . . . 91 60 . . . . Melee 163 | . . . . . . 163 . . . . Ramming 1 | . . . . . . 1 . . . . Kinetic 3333 | . 18 25 805 704 192 717 543 . 163 166 Thermal 357 | . . . . . 91 183 . . . 83 Explosive . | . . . . . . . . . . . Electromagnetic 753 | . 30 40 46 . 352 212 58 . 15 . Impact . | . . . . . . . . . . . Slashing 163 | . . . . . . 163 . . . . Piercing . | . . . . . . . . . . . Highest Corruption 4 | . . . . . . 4 4 . . 1 Average Corruption 3 | . . . . . . 3 3 . . 1 Corruption Purged 4 | . . . . . . . 4 . . . Corruption Blocked . | . . . . . . . . . . . Effects 25 | . . . . . . 14 11 . . . Message Errors 9 | . . . . . . 6 3 . . . Matter Fused 5 | . . . . . . 2 3 . . . Heat Flow Errors 2 | . . . . . . 1 1 . . . Energy Discharges 3 | . . . . . . 3 . . . . Parts Rejected 1 | . . . . . . . 1 . . . Parts Fused 1 | . . . . . . 1 . . . . Data Loss (minor) 2 | . . . . . . . 2 . . . Alerts 1 | . . . . . . 1 . . . . Weapon Failures 1 | . . . . . . . 1 . . . Overload Shots . | . . . . . . . . . . . Overflow Damage 109 | . . . . . 13 67 . . . 29 Projectiles 96 | . . . . . . 67 . . . 29 Explosions 13 | . . . . . 13 . . . . . Melee . | . . . . . . . . . . . Knockbacks 8 | . . . . . . 5 1 . 1 1 Impact . | . . . . . . . . . . . Kinetic 8 | . . . . . . 5 1 . 1 1 Secondary . | . . . . . . . . . . . Self-Inflicted Damage 152 | . . . . . 152 . . . . . Shots 3 | . . . . . 3 . . . . . Rammed . | . . . . . . . . . . . Targets Rammed 1 | . . . . . . 1 . . . . Kicked 1 | . . . . . . 1 . . . . Crushed . | . . . . . . . . . . . Highest Temperature 254 | . 40 29 22 96 120 203 254 . . 225 Average Temperature 46 | . 20 16 5 31 48 44 77 . . 114 Received Heat Transfer 1480 | . 27 63 279 306 297 274 234 . . . Effects 1 | . . . . . . . . . . 1 Energy Bleed 1 | . . . . . . . . . . 1 Siege Activations . | . . . . . . . . . . . Robots Corrupted . | . . . . . . . . . . . Combat Hostiles . | . . . . . . . . . . . Parts Fried . | . . . . . . . . . . . Impact Corruptions . | . . . . . . . . . . . Robots Melted . | . . . . . . . . . . . Combat Hostiles . | . . . . . . . . . . . Parts Melted 1 | . . . . . . 1 . . . . Heat Transferred 470 | . . . . . 50 272 . . . 148 Parts Sabotaged . | . . . . . . . . . . . Parts Stolen . | . . . . . . . . . . . Parts Stripped . | . . . . . . . . . . . Power Chain Reactions 3 | . . . . . 2 1 . . . . Alert | -11 -10 -10 -9 -9 -8 -8 -8 -7 -7 -6 ------- Run | Yrd Mat Min Mat Min Mat Gar Mat Fac DSF Fac Peak Influence 530 | . 94 30 296 349 262 530 229 22 58 74 Initial 222 | . . 27 9 94 72 149 222 22 13 26 Average 172 | . 46 27 194 223 133 360 108 22 43 55 Maximum Alert Level 2 | . . . 1 1 1 2 1 . . . Low Security (%) 61 | 100 100 100 48 38 73 14 84 100 100 100 Level 1 30 | . . . 51 61 26 47 15 . . . Level 2 8 | . . . . . . 37 . . . . Level 3 . | . . . . . . . . . . . Level 4 . | . . . . . . . . . . . Level 5 . | . . . . . . . . . . . High Security . | . . . . . . . . . . . Max Security . | . . . . . . . . . . . Squads Dispatched 8 | . . . 2 . 2 . 1 . 2 1 Investigation . | . . . . . . . . . . . Extermination . | . . . . . . . . . . . Reinforcement 7 | . . . 2 . 1 . 1 . 2 1 Assault . | . . . . . . . . . . . Garrison 1 | . . . . . 1 . . . . . Intercept . | . . . . . . . . . . . Searches Triggered . | . . . . . . . . . . . Construction Impeded . | . . . . . . . . . . . Haulers Reinforced . | . . . . . . . . . . . Active Scanning Responses . | . . . . . . . . . . . Cargo Convoy Interrupts . | . . . . . . . . . . . Stealth | -11 -10 -10 -9 -9 -8 -8 -8 -7 -7 -6 --------- Run | Yrd Mat Min Mat Min Mat Gar Mat Fac DSF Fac Distress Signals 4 | . 2 . . . . . 2 . . . Communications Jammed . | . . . . . . . . . . . Distress Signals . | . . . . . . . . . . . Times Spotted 127 | . 12 9 31 18 8 28 15 . 5 1 Peak Tracking Total 6 | . 3 2 6 4 5 4 4 . 2 1 Tactical Retreats 17 | . 3 4 4 1 1 3 . . 1 . Traps | -11 -10 -10 -9 -9 -8 -8 -8 -7 -7 -6 ------- Run | Yrd Mat Min Mat Min Mat Gar Mat Fac DSF Fac Traps Triggered 2 | . 2 . . . . . . . . . Indirectly . | . . . . . . . . . . . Trap Hack Attempts . | . . . . . . . . . . . Triggered . | . . . . . . . . . . . Disarmed . | . . . . . . . . . . . Reprogrammed . | . . . . . . . . . . . Reused . | . . . . . . . . . . . Traps Extracted . | . . . . . . . . . . . Installed . | . . . . . . . . . . . Triggered . | . . . . . . . . . . . Machines | -11 -10 -10 -9 -9 -8 -8 -8 -7 -7 -6 ---------- Run | Yrd Mat Min Mat Min Mat Gar Mat Fac DSF Fac Machines Disabled 4 | . 1 . . . 2 1 . . . . Max in Single Turn 2 | . 1 . . . 2 1 . . . . Garrison Relay 1 | . . . . . . 1 . . . . Machines Repaired . | . . . . . . . . . . . Machines Dismantled . | . . . . . . . . . . . Machines Sabotaged . | . . . . . . . . . . . Overloaded Fab Kills . | . . . . . . . . . . . Hacking | -11 -10 -10 -9 -9 -8 -8 -8 -7 -7 -6 --------- Run | Yrd Mat Min Mat Min Mat Gar Mat Fac DSF Fac Machines Accessed 17 | . 2 . 8 . 2 2 2 1 . . Terminals 10 | . 1 . 5 . . 2 1 1 . . Fabricators . | . . . . . . . . . . . Repair Stations 1 | . . . 1 . . . . . . . Recycling Units 3 | . 1 . 1 . 1 . . . . . Scanalyzers 2 | . . . 1 . . . 1 . . . Garrison Access 1 | . . . . . 1 . . . . . Total Hacks 44 | . 3 . 25 . 2 5 7 2 . . Successful 32 | . 2 . 20 . 2 2 5 1 . . Failed 12 | . 1 . 5 . . 3 2 1 . . Catastrophic 1 | . . . 1 . . . . . . . Database Lockouts . | . . . . . . . . . . . Manual . | . . . . . . . . . . . Terminals 27 | . 2 . 14 . . 5 4 2 . . Fabricators . | . . . . . . . . . . . Repair Stations 4 | . . . 4 . . . . . . . Recycling Units 3 | . 1 . 1 . 1 . . . . . Scanalyzers 9 | . . . 6 . . . 3 . . . Garrison Access 1 | . . . . . 1 . . . . . Terminal Hacks 15 | . 1 . 9 . . 2 2 1 . . Record 3 | . . . 3 . . . . . . . Prototype ID Bank 1 | . . . 1 . . . . . . . Open DSF 1 | . . . . . . . . 1 . . Emergency Access Points 1 | . . . . . . 1 . . . . Terminal Index 1 | . . . 1 . . . . . . . Alert Level 2 | . . . 2 . . . . . . . Unreport Threat 1 | . . . . . . . 1 . . . Locate Traps 1 | . 1 . . . . . . . . . Recall Reinforcements 1 | . . . 1 . . . . . . . Zone Layout 2 | . . . 1 . . . 1 . . . Patrol Navigation 1 | . . . . . . 1 . . . . Fabricator Hacks . | . . . . . . . . . . . Repair Station Hacks 4 | . . . 4 . . . . . . . Scan Component 2 | . . . 2 . . . . . . . Repair 2 | . . . 2 . . . . . . . Recycling Unit Hacks 3 | . 1 . 1 . 1 . . . . . Report Inventory 3 | . 1 . 1 . 1 . . . . . Scanalyzer 9 | . . . 6 . . . 3 . . . Insert Component 5 | . . . 3 . . . 2 . . . Analyze 4 | . . . 3 . . . 1 . . . Garrison Access Hacks 1 | . . . . . 1 . . . . . Unlock Access 1 | . . . . . 1 . . . . . Unauthorized Hacks . | . . . . . . . . . . . Terminals . | . . . . . . . . . . . Fabricators . | . . . . . . . . . . . Repair Stations . | . . . . . . . . . . . Recycling Units . | . . . . . . . . . . . Scanalyzers . | . . . . . . . . . . . Garrison Access . | . . . . . . . . . . . Data Cores Recovered 2 | . . . 1 . . . 1 . . . Used 1 | . . . 1 . . . . . . . Hacking Detections 9 | . 2 . 4 . . 2 1 . . . Full Trace Events . | . . . . . . . . . . . Feedback Events . | . . . . . . . . . . . Feedback Blocked . | . . . . . . . . . . . Robot Schematics Acquired . | . . . . . . . . . . . Robots Built . | . . . . . . . . . . . Authchips . | . . . . . . . . . . . Time . | . . . . . . . . . . . Total Robot Build Rating . | . . . . . . . . . . . Part Schematics Acquired 4 | . . . 3 . . . 1 . . . Parts Built . | . . . . . . . . . . . Authchips . | . . . . . . . . . . . Time . | . . . . . . . . . . . Total Part Build Rating . | . . . . . . . . . . . Parts Repaired 2 | . . . 2 . . . . . . . Time 52 | . . . 52 . . . . . . . Parts Recycled . | . . . . . . . . . . . Recycled Matter . | . . . . . . . . . . . Retrieved Matter . | . . . . . . . . . . . Retrieved Components . | . . . . . . . . . . . Parts Scanalyzed 4 | . . . 3 . . . 1 . . . Part Schematics Acquired 4 | . . . 3 . . . 1 . . . Parts Damaged . | . . . . . . . . . . . Bothacking | -11 -10 -10 -9 -9 -8 -8 -8 -7 -7 -6 ------------ Run | Yrd Mat Min Mat Min Mat Gar Mat Fac DSF Fac Used RIF Installer 1 | . . . . . . 1 . . . . Robots Hacked 4 | . . . . . . . 4 . . . Non-combat . | . . . . . . . . . . . Combat 4 | . . . . . . . 4 . . . Robot Hacks Applied 4 | . . . . . . . 4 . . . parse_system 1 | . . . . . . . 1 . . . find_garrison 1 | . . . . . . . 1 . . . overwrite_iff 2 | . . . . . . . 2 . . . Relay Couplers Released 8 | . . . . . . 8 . . . . Machine Destruction 5 | . . . . . . 5 . . . . Programmers 3 | . . . . . . 3 . . . . Attached 1 | . . . . . . . 1 . . . Fabnet Peak Effective % . | . . . . . . . . . . . Robots Rewired . | . . . . . . . . . . . Allies Hacked . | . . . . . . . . . . . Hacks Repelled . | . . . . . . . . . . . Allies | -11 -10 -10 -9 -9 -8 -8 -8 -7 -7 -6 -------- Run | Yrd Mat Min Mat Min Mat Gar Mat Fac DSF Fac Total Allies 2 | . . . . . . . 2 . . . Largest Group 1 | . . . . . . . 1 . . . Highest-Rated Group 29 | . . . . . . . 29 . . . Highest-Rated Ally 29 | . . . . . . . 29 . . . Total Orders . | . . . . . . . . . . . Ally Attacks 7 | . . . . . . . 7 . . . Total Damage 103 | . . . . . . . 103 . . . Kills 1 | . . . . . . . 1 . . . Allies Corrupted . | . . . . . . . . . . . Allies Melted . | . . . . . . . . . . . Intel | -11 -10 -10 -9 -9 -8 -8 -8 -7 -7 -6 ------- Run | Yrd Mat Min Mat Min Mat Gar Mat Fac DSF Fac Robot Analysis Total . | . . . . . . . . . . . Derelict Logs Recovered 4 | . . 2 . 2 . . . . . . Drone Launches . | . . . . . . . . . . . Drone Recoveries . | . . . . . . . . . . . Exploration | -11 -10 -10 -9 -9 -8 -8 -8 -7 -7 -6 ------------- Run | Yrd Mat Min Mat Min Mat Gar Mat Fac DSF Fac Turns Passed 4155 | 57 276 520 686 527 209 909 619 15 198 139 Spaces Moved 2658 | 49 240 306 545 434 126 523 273 8 91 63 Core 13 | 11 . . . . . 2 . . . . Treads 18 | . . . . . . 18 . . . . Legs 758 | . . . . . . 323 273 8 91 63 Wheels 1869 | 38 240 306 545 434 126 180 . . . . Hover . | . . . . . . . . . . . Flight . | . . . . . . . . . . . Fastest Speed 50 | 50 100 100 80 90 93 100 120 190 183 185 Average Speed 115 | 88 100 100 85 94 95 128 190 190 186 185 Slowest Speed 260 | 100 100 100 100 100 115 250 260 190 260 185 Overloaded Moves . | . . . . . . . . . . . Propulsion Burnouts . | . . . . . . . . . . . Robots Hopped . | . . . . . . . . . . . Cave-ins Triggered . | . . . . . . . . . . . Exploration Rate (%) 40 | 4 49 56 52 92 13 58 26 . 51 3 Regions Visited 10 Branch Regions 2 Pre-discovered Areas . | . . . . . . . . . . . Known Exits Taken 3 | . . . . . 1 . 1 1 . . Unknown Exits Taken 5 | 1 1 1 1 1 . . . . . . Scrap Searched 2 | . . 1 . 1 . . . . . . Spaces Dug 2 | . . . . . . 2 . . . . Terrain Destroyed 56 | . . . . . 30 17 6 . . 3 Melee . | . . . . . . . . . . . Projectile 18 | . . . . . . 9 6 . . 3 AOE 38 | . . . . . 30 8 . . . . Terrain Rammed . | . . . . . . . . . . . Walls Destroyed . | . . . . . . . . . . . Machines Disabled . | . . . . . . . . . . . Actions | -11 -10 -10 -9 -9 -8 -8 -8 -7 -7 -6 --------- Run | Yrd Mat Min Mat Min Mat Gar Mat Fac DSF Fac Total 3434 | 62 268 509 693 491 185 681 351 8 111 75 Wait 386 | 1 16 195 69 5 32 39 25 . . 4 Move 2649 | 48 239 305 544 433 126 522 272 7 90 63 Hop . | . . . . . . . . . . . Pick Up 85 | 8 5 3 14 7 3 22 15 . 7 1 Fast Attach . | . . . . . . . . . . . Attach 51 | 5 3 . 8 4 5 15 3 1 5 2 Detach 1 | . . . . . . . 1 . . . Swap 40 | . 1 . 9 7 4 9 8 . 2 . Drop 18 | . . . 7 2 1 5 2 . 1 . Fire 186 | . 4 6 42 33 14 51 25 . 6 5 Melee 17 | . . . . . . 17 . . . . Ram . | . . . . . . . . . . . Kick 1 | . . . . . . 1 . . . . Crush . | . . . . . . . . . . . Escape Stasis . | . . . . . . . . . . . Rewire . | . . . . . . . . . . . Trap . | . . . . . . . . . . . Miscellaneous . | . . . . . . . . . . . Route ------- -11/Scrapyard -10/Materials -10/Mines -9/Materials -9/Mines -8/Materials (discovered 3 exits: Fac x2 / Gar) -8/Garrison -8/Materials -7/Factory -7/DSF -6/Factory History --------- Turn | Location | Event 2 | -11/Scrapyard | Discovered new exit (range 16) 58 | -11/Scrapyard | Entered Materials 192 | -10/Materials | Discovered new exit (range 12) 308 | -10/Materials | Build established: Mutant 334 | -10/Materials | Entered Mines 337 | -10/Mines | Met a Derelict bent on vengeance 623 | -10/Mines | Assembled infested the area 628 | -10/Mines | Assisted by a Guerilla fighting off Assembled 628 | -10/Mines | Learned Materials security intel 845 | -10/Mines | Discovered new exit (range 2) 854 | -10/Mines | Entered Materials 854 | -9/Materials | Evolved 2 slots: Utility x2 990 | -9/Materials | Repaired Com. Wheel 1019 | -9/Materials | Repaired ECM Suite 1323 | -9/Materials | Discovered new exit (range 17) 1540 | -9/Materials | Entered Mines 1678 | -9/Mines | Discovered new exit (range 12) 1789 | -9/Mines | Lost 3 parts (1p1u1w) 1899 | -9/Mines | Core integrity fell below 50% 1989 | -9/Mines | Learned location of 1 exit from Materials 2067 | -9/Mines | Entered Materials 2067 | -8/Materials | Evolved 2 slots: Propulsion x1, Utility x1 2068 | -8/Materials | Identified exit to Factory 2187 | -8/Materials | Garrison activated, responded to threat 2261 | -8/Materials | Lost 4 parts (1n2u1w) 2276 | -8/Materials | Identified exit to Garrison 2276 | -8/Materials | Entered Garrison 2332 | -8/Garrison | Triggered checkpoint 2409 | -8/Garrison | Garrison Relay disabled 2518 | -8/Garrison | Core integrity fell below 50% 2572 | -8/Garrison | Lost 6 parts (3n2u1w) 2627 | -8/Garrison | Assembled breached garrison interior 2958 | -8/Garrison | Discovered new exit (range 10) 3091 | -8/Garrison | Installed Relay Interface Framework 3092 | -8/Garrison | Build established: Scavenger-Mutant 3185 | -8/Garrison | Entered Materials 3595 | -8/Materials | Discovered exit to Factory (range 7) 3760 | -8/Materials | Core integrity fell below 20% 3804 | -8/Materials | Entered Factory 3804 | -7/Factory | Evolved 2 slots: Propulsion x1, Utility x1 3814 | -7/Factory | Lost 3 parts (2n1u) 3817 | -7/Factory | Identified exit to DSF 3819 | -7/Factory | Entered DSF 3825 | -7/DSF | Build established: Bothacker-Mutant 3854 | -7/DSF | Additional patrols routed to DSF 3983 | -7/DSF | Discovered new exit (range 17) 4017 | -7/DSF | Entered Factory 4017 | -6/Factory | Evolved 2 slots: Propulsion x1, Utility x1 4156 | -6/Factory | Self-destructed Last Messages --------------- Slug penetrates Wall. Slug penetrates Matter Repository. Matter Repository disabled. Penetrated by Slug. PARAMETERS=PROPULSION+1,UTILITY+1 LOCATION=UNKNOWN GOAL=ESCAPE Acquired Imp. Shield Generator. P-60 Hacker knocked back. Slug penetrates P-60 Hacker. Destroyed Shock Rifle. P-60 Hacker destroyed. Overheating: Energy bleed (-13). O-24 Administrator: "IFF HANDSHAKE FAILED. SECURING TERMINAL." ALERT: Hostiles spotted, dispatching reinforcements to Terminal F003. Connecting with Repair Station... Current location identified: Factory K-01 Serf collects debris. Map ----- +----------------------------------------------------+ | ?????????????????????????????????????????????????? | | ?????????????????????????????????????????????????? | | ?????????????????????????????????????????????????? | | ?????????????????????????????????????????????????? | | ?????????????????????????????????????????????????? | | ?????????????????????????????????????????????????? | | ?????????????????????????????????????????????????? | | ?????????????????????????????????????????????????? | | ?????????????????????????? ??????????????????????? | | ?????????????????????????? ??????????????????????? | | ?????????????????????????? ??????????????????????? | | ?????????????????????????? ??????????????????????? | | ?????????????????????????? #?????????????????????? | | ?????????????????????????? # "???????????????????? | | ?????????????????????????? # "???????????????????? | | ?????????????????????????? # " ??????????????????? | | ?????????????????????????# # " ??????????????????? | | ?????????????????????????# # " "????????????###+## | | ?????????????????????????# #? ????????????# | | ?????????????????????????# #?? ???????????# * " | | ?????????????????????????# #???#+#+########## " | | ??????????????????????#### #???# + | | ??????????????????????# #???# # " | | ??????????????????????# #???# + | | ??????????????????????# ##### ######## | | ??????????????????????+ @ #??????# =] | | ??????????????????????# #??????# = | | ??????????????????????# #???####""##+ | | ??????????????????????+ %% | | ??????????????????????####### k %% | | ????????????????????????????# | | ????????????????????????????# | | ????????????????????????????# | | ????????????????????????????# ####+######+#### | | ????????????????????????????# #??????????????# | | ????????????????????????????#+#??????????????# | | ?????????????????????????????????????????????+ | | ?????????????????????????????????????????????# | | ?????????????????????????????????????????????# | | ?????????????????????????????????????????????# | | ?????????????????????????????????????????????# | | ?????????????????????????????????????????????# | | ????????????????????????????????????????????? | | ????????????????????????????????????????????? | | ?????????????????????????????????????????????? | | ???????????????????????????????????????????????? | | ?????????????????????????????????????????????????? | | ?????????????????????????????????????????????????? | | ?????????????????????????????????????????????????? | | ?????????????????????????????????????????????????? | +----------------------------------------------------+ Best States ------------- Heat Dissipation 37 Energy Generation 14 Energy Capacity 265 Matter Stores 300 Matter Capacity 300 Sight Range 18 Terrain Scan Density 10 ECM Strength 1 Armor Coverage 450 Resistance: KI 20 Resistance: TH 20 Resistance: EX 20 Resistance: EM 20 Resistance: I 20 Resistance: S 20 Resistance: P 20 Core Shielding 20 Utility Shielding 33 Weapon Cycling 20 Evasion (%) 63 Targeting Accuracy 6 Core Analysis 9 Recoil Reduction 1 Offensive Hacking 10 Defensive Hacking 14 Relay Coupler Types 1 Relay Coupler Value 29 Item Schematics ----------------- Com. Wheel | -9/Materials | Scanalyzed Lgt. Armor Plating | -9/Materials | Scanalyzed Utility Shielding | -9/Materials | Scanalyzed Imp. Aluminum Leg | -8/Materials | Scanalyzed Robot Schematics ------------------ None Fabricated ------------ Nothing Alien Tech Used ----------------- None Achievements -------------- None Challenges ------------ None Game ------ Seed BurstWardroneTriangulator Manual? 0 Play Time 00:52:38 Cumulative 29.8 hours Start 2024.09.27 @ 21:30:51 End 2024.12.11 @ 20:31:52 Sessions 5 Manual Loads 0 Difficulty Adventurer Special Mode None Game No. 23 Rogue 0 Adventurer 23 Explorer 0 Win Type - Total 0 Types 0/0/0/0/0/0/0/0/0 Lore% 8 Gallery% 26 Achievement% 23 Wizard Run 0 Options --------- Layout 1 ASCII 0 Keyboard 0 Movement Mouse Keybinds 0 Fullscreen 1 Font 24/Smallcaps Map View 50x35 Zoom Use 58% Tactical HUD 0 Map Filters NONE Filters NONE Steam 1 RUN: 0f1b82b5-ac76-43d3-b317-c8257aabe1fc